[Event "Late-Titled-Tuesday-Blitz-April-30-2024"]
[Site "Chess.com"]
[Date "2024.04.30"]
[Round "2"]
[White "ChessFighter1975"]
[Black "HamedWafa4"]
[Result "0-1"]
[WhiteElo "2405"]
[BlackElo "2725"]
[TimeControl "180+1"]
[EndTime "14:18:10 PDT"]
[Termination "HamedWafa4 won by checkmate"]

1. d4 {[%clk 0:03:00.9]} 1... Nf6 {[%clk 0:02:59.1]} 2. c4 {[%clk 0:03:01.1]}
2... e6 {[%clk 0:02:59.3]} 3. Bg5 {[%clk 0:03:01.3]} 3... h6 {[%clk 0:02:56.4]}
4. Bh4 {[%clk 0:03:00.9]} 4... c5 {[%clk 0:02:51.1]} 5. d5 {[%clk 0:03:00.5]}
5... exd5 {[%clk 0:02:50.9]} 6. cxd5 {[%clk 0:03:01.4]} 6... d6 {[%clk
0:02:50.8]} 7. Nc3 {[%clk 0:03:02]} 7... Be7 {[%clk 0:02:50.8]} 8. Bg3 {[%clk
0:02:55.8]} 8... Nh5 {[%clk 0:02:48.8]} 9. e4 {[%clk 0:02:55.6]} 9... Nxg3
{[%clk 0:02:49.1]} 10. hxg3 {[%clk 0:02:56.5]} 10... a6 {[%clk 0:02:49.1]} 11.
a4 {[%clk 0:02:56.4]} 11... Nd7 {[%clk 0:02:49.2]} 12. f4 {[%clk 0:02:56.8]}
12... Nf6 {[%clk 0:02:47.1]} 13. e5 {[%clk 0:02:54.6]} 13... Ng4 {[%clk
0:02:46.8]} 14. Nf3 {[%clk 0:02:54]} 14... Qb6 {[%clk 0:02:43.2]} 15. Qd2 {[%clk
0:02:49.5]} 15... Bf5 {[%clk 0:02:28]} 16. a5 {[%clk 0:02:47.5]} 16... Qc7
{[%clk 0:02:23.3]} 17. Qe2 {[%clk 0:01:41.6]} 17... O-O {[%clk 0:02:10.3]} 18.
Nh4 {[%clk 0:01:40.4]} 18... Bxh4 {[%clk 0:02:07.9]} 19. Rxh4 {[%clk 0:01:39.9]}
19... dxe5 {[%clk 0:01:58.2]} 20. Rxg4 {[%clk 0:01:39.6]} 20... Rae8 {[%clk
0:01:56.7]} 21. O-O-O {[%clk 0:01:09.3]} 21... exf4 {[%clk 0:01:51.9]} 22. Qf3
{[%clk 0:01:06.3]} 22... Qxa5 {[%clk 0:01:50]} 23. Bd3 {[%clk 0:01:03.6]} 23...
Re3 {[%clk 0:01:31]} 24. Qxf4 {[%clk 0:01:03.9]} 24... Rxd3 {[%clk 0:01:31.3]}
25. Qxf5 {[%clk 0:01:00.3]} 25... Qa1+ {[%clk 0:01:30]} 26. Kc2 {[%clk
0:00:58.2]} 26... Rxd1 {[%clk 0:01:23.5]} 27. Nxd1 {[%clk 0:00:58.2]} 27... Re8
{[%clk 0:01:11.7]} 28. Re4 {[%clk 0:00:47.9]} 28... Rd8 {[%clk 0:01:02.9]} 29.
Nc3 {[%clk 0:00:46.2]} 29... Qg1 {[%clk 0:00:58.8]} 30. Qf3 {[%clk 0:00:39.9]}
30... b5 {[%clk 0:00:53]} 31. Re7 {[%clk 0:00:40.3]} 31... Rf8 {[%clk
0:00:51.3]} 32. d6 {[%clk 0:00:39.1]} 32... b4 {[%clk 0:00:45.2]} 33. Nd5 {[%clk
0:00:29.3]} 33... c4 {[%clk 0:00:45.3]} 34. Nxb4 {[%clk 0:00:26.5]} 34... Qc5
{[%clk 0:00:39.6]} 35. Nd5 {[%clk 0:00:19.7]} 35... Qxd6 {[%clk 0:00:40]} 36.
Qe4 {[%clk 0:00:19.9]} 36... Qc6 {[%clk 0:00:35]} 37. Rc7 {[%clk 0:00:15.8]}
37... Qa4+ {[%clk 0:00:34.6]} 38. Kc1 {[%clk 0:00:13.8]} 38... Rd8 {[%clk
0:00:32.1]} 39. Ne7+ {[%clk 0:00:12.8]} 39... Kh8 {[%clk 0:00:29.1]} 40. Rc8
{[%clk 0:00:10.7]} 40... Qd1# {[%clk 0:00:28.8]} 0-1

[Event "Late-Titled-Tuesday-Blitz-April-30-2024"]
[Site "Chess.com"]
[Date "2024.04.30"]
[Round "2"]
[White "rionelG"]
[Black "WilsonPalencia21"]
[Result "0-1"]
[WhiteElo "2283"]
[BlackElo "2512"]
[TimeControl "180+1"]
[EndTime "14:18:14 PDT"]
[Termination "WilsonPalencia21 won by resignation"]

1. e4 {[%clk 0:02:46.4]} 1... c5 {[%clk 0:02:59.4]} 2. g3 {[%clk 0:02:46.1]}
2... g6 {[%clk 0:02:58.5]} 3. Bg2 {[%clk 0:02:45.9]} 3... Bg7 {[%clk 0:02:59.1]}
4. Ne2 {[%clk 0:02:46.8]} 4... Nc6 {[%clk 0:02:59.6]} 5. c3 {[%clk 0:02:47.4]}
5... e5 {[%clk 0:03:00.1]} 6. d3 {[%clk 0:02:47.5]} 6... Nge7 {[%clk 0:03:00.7]}
7. Be3 {[%clk 0:02:48]} 7... d6 {[%clk 0:03:00.9]} 8. O-O {[%clk 0:02:47.3]}
8... O-O {[%clk 0:02:58.5]} 9. f4 {[%clk 0:02:47.9]} 9... f5 {[%clk 0:02:47.3]}
10. fxe5 {[%clk 0:02:45.5]} 10... Nxe5 {[%clk 0:02:47.5]} 11. Nd2 {[%clk
0:02:46.2]} 11... Nxd3 {[%clk 0:02:47.4]} 12. Nc4 {[%clk 0:02:46.5]} 12... Ne5
{[%clk 0:02:37.3]} 13. Nxd6 {[%clk 0:02:45.6]} 13... Qc7 {[%clk 0:02:06.6]} 14.
Qb3+ {[%clk 0:02:11.4]} 14... Kh8 {[%clk 0:01:55.8]} 15. Rad1 {[%clk 0:02:06.6]}
15... Rb8 {[%clk 0:01:36.4]} 16. exf5 {[%clk 0:01:48.2]} 16... Nxf5 {[%clk
0:01:34]} 17. Nxf5 {[%clk 0:01:48]} 17... Bxf5 {[%clk 0:01:33.7]} 18. Nf4 {[%clk
0:01:43.3]} 18... Ng4 {[%clk 0:01:24.7]} 19. Bc1 {[%clk 0:01:28.5]} 19... c4
{[%clk 0:01:15.7]} 20. Qb4 {[%clk 0:01:19.6]} 20... b5 {[%clk 0:01:00.7]} 21.
Qd6 {[%clk 0:01:11.5]} 21... Qxd6 {[%clk 0:00:53.6]} 22. Rxd6 {[%clk 0:01:10.8]}
22... Ne5 {[%clk 0:00:42.4]} 23. h3 {[%clk 0:01:04.4]} 23... Nd3 {[%clk
0:00:40.8]} 24. Nxd3 {[%clk 0:01:04.5]} 24... Bxd3 {[%clk 0:00:39.3]} 25. Rxf8+
{[%clk 0:01:00.6]} 25... Rxf8 {[%clk 0:00:40.2]} 26. Bf4 {[%clk 0:01:00.2]}
26... b4 {[%clk 0:00:36.7]} 27. Bd2 {[%clk 0:00:47.3]} 27... bxc3 {[%clk
0:00:34.2]} 28. Bxc3 {[%clk 0:00:47.4]} 28... Bxc3 {[%clk 0:00:33.2]} 29. bxc3
{[%clk 0:00:48.3]} 29... Rb8 {[%clk 0:00:32]} 30. Ra6 {[%clk 0:00:28.2]} 30...
Rb1+ {[%clk 0:00:24.8]} 31. Kf2 {[%clk 0:00:28.1]} 31... Rc1 {[%clk 0:00:25.1]}
32. g4 {[%clk 0:00:21.2]} 32... Rxc3 {[%clk 0:00:23.6]} 33. g5 {[%clk
0:00:19.5]} 33... Rc2+ {[%clk 0:00:20.8]} 34. Kg3 {[%clk 0:00:18.9]} 34... c3
{[%clk 0:00:12.6]} 35. Bd5 {[%clk 0:00:18.6]} 35... Bxa6 {[%clk 0:00:12]} 0-1

[Event "Late-Titled-Tuesday-Blitz-April-30-2024"]
[Site "Chess.com"]
[Date "2024.04.30"]
[Round "2"]
[White "PapaieDudu"]
[Black "LeninGuerra"]
[Result "0-1"]
[WhiteElo "2391"]
[BlackElo "2662"]
[TimeControl "180+1"]
[EndTime "14:18:16 PDT"]
[Termination "LeninGuerra won by resignation"]

1. Nf3 {[%clk 0:02:40.3]} 1... c5 {[%clk 0:02:59.3]} 2. e3 {[%clk 0:02:38.2]}
2... e6 {[%clk 0:02:59.1]} 3. d4 {[%clk 0:02:38.9]} 3... Nf6 {[%clk 0:02:58.4]}
4. c4 {[%clk 0:02:39.3]} 4... Be7 {[%clk 0:02:58.4]} 5. Nc3 {[%clk 0:02:39.9]}
5... O-O {[%clk 0:02:57.9]} 6. Bd3 {[%clk 0:02:40.5]} 6... b6 {[%clk 0:02:57.8]}
7. O-O {[%clk 0:02:41]} 7... Bb7 {[%clk 0:02:57.5]} 8. Qe2 {[%clk 0:02:41.7]}
8... a6 {[%clk 0:02:56.9]} 9. Rd1 {[%clk 0:02:42]} 9... d6 {[%clk 0:02:57.1]}
10. e4 {[%clk 0:02:42.4]} 10... Nbd7 {[%clk 0:02:56.4]} 11. e5 {[%clk
0:02:42.7]} 11... dxe5 {[%clk 0:02:56.3]} 12. dxe5 {[%clk 0:02:43.1]} 12... Ne8
{[%clk 0:02:56.3]} 13. Bf4 {[%clk 0:02:35.9]} 13... Qc7 {[%clk 0:02:55.5]} 14.
Bxh7+ {[%clk 0:02:28.8]} 14... Kxh7 {[%clk 0:02:47.3]} 15. Qd3+ {[%clk
0:02:06.8]} 15... Kg8 {[%clk 0:02:46.4]} 16. Qxd7 {[%clk 0:02:02]} 16... Bc6
{[%clk 0:02:46.6]} 17. Qd3 {[%clk 0:01:56.4]} 17... Qb7 {[%clk 0:02:42.2]} 18.
Qe3 {[%clk 0:01:23.4]} 18... g6 {[%clk 0:02:25.8]} 19. Bg5 {[%clk 0:01:18.5]}
19... Ng7 {[%clk 0:02:25.8]} 20. Bf6 {[%clk 0:01:13.2]} 20... Nf5 {[%clk
0:02:25.7]} 21. Qf4 {[%clk 0:01:13]} 21... Bxf3 {[%clk 0:02:10.1]} 22. gxf3
{[%clk 0:01:08.9]} 22... Bxf6 {[%clk 0:02:09.7]} 23. exf6 {[%clk 0:01:09.1]}
23... Kh7 {[%clk 0:02:05.8]} 24. Ne4 {[%clk 0:01:08]} 24... Rh8 {[%clk
0:02:06.1]} 25. Rd3 {[%clk 0:00:40.3]} 25... Nd4 {[%clk 0:01:44.7]} 26. Kf1
{[%clk 0:00:32.8]} 26... Kg8 {[%clk 0:01:42.6]} 27. b4 {[%clk 0:00:29.9]} 27...
Rh5 {[%clk 0:01:10.8]} 28. Rb1 {[%clk 0:00:21.6]} 28... e5 {[%clk 0:01:00.8]}
29. Qg3 {[%clk 0:00:16.4]} 29... Qc8 {[%clk 0:00:58.1]} 30. bxc5 {[%clk
0:00:11.1]} 30... bxc5 {[%clk 0:00:59]} 31. h4 {[%clk 0:00:05]} 31... Qe6 {[%clk
0:00:54.6]} 32. Nxc5 {[%clk 0:00:04.9]} 32... Qxc4 {[%clk 0:00:54.6]} 33. Kg2
{[%clk 0:00:01.2]} 33... Qxc5 {[%clk 0:00:53.8]} 34. Rbd1 {[%clk 0:00:01.7]}
34... Qc6 {[%clk 0:00:51.7]} 35. Rxd4 {[%clk 0:00:01.2]} 35... exd4 {[%clk
0:00:51.4]} 36. Rxd4 {[%clk 0:00:01.9]} 36... Qxf6 {[%clk 0:00:51.6]} 37. Rg4
{[%clk 0:00:02.5]} 37... Re8 {[%clk 0:00:50.7]} 38. Rf4 {[%clk 0:00:02]} 38...
Qe5 {[%clk 0:00:50.1]} 39. Qg4 {[%clk 0:00:01.2]} 39... Re6 {[%clk 0:00:48.8]}
40. Qg3 {[%clk 0:00:01.3]} 40... Qa1 {[%clk 0:00:47.3]} 41. Rg4 {[%clk
0:00:01.4]} 41... Rd5 {[%clk 0:00:45]} 42. Rg5 {[%clk 0:00:01.1]} 42... Rxg5
{[%clk 0:00:44.1]} 43. Qxg5 {[%clk 0:00:02]} 43... Qf6 {[%clk 0:00:43]} 44. f4
{[%clk 0:00:01.8]} 44... Qxg5+ {[%clk 0:00:42.8]} 0-1

[Event "Late-Titled-Tuesday-Blitz-April-30-2024"]
[Site "Chess.com"]
[Date "2024.04.30"]
[Round "2"]
[White "ArmanGhevondyanchess"]
[Black "Hirna2005"]
[Result "0-1"]
[WhiteElo "2523"]
[BlackElo "2356"]
[TimeControl "180+1"]
[EndTime "14:18:16 PDT"]
[Termination "Hirna2005 won by checkmate"]

1. Nf3 {[%clk 0:02:52.2]} 1... g6 {[%clk 0:03:00.6]} 2. d4 {[%clk 0:02:51.3]}
2... Bg7 {[%clk 0:03:01.3]} 3. Nc3 {[%clk 0:02:48]} 3... d6 {[%clk 0:03:01.8]}
4. e4 {[%clk 0:02:43.9]} 4... a6 {[%clk 0:03:02.2]} 5. a4 {[%clk 0:02:43.4]}
5... Nc6 {[%clk 0:03:02]} 6. Be3 {[%clk 0:02:42.7]} 6... Bg4 {[%clk 0:03:01.1]}
7. h3 {[%clk 0:02:42.2]} 7... Bxf3 {[%clk 0:03:00.8]} 8. gxf3 {[%clk 0:02:43.1]}
8... e5 {[%clk 0:03:00.4]} 9. d5 {[%clk 0:02:41.4]} 9... Nce7 {[%clk 0:03:00.4]}
10. h4 {[%clk 0:02:40.2]} 10... f5 {[%clk 0:03:00.6]} 11. h5 {[%clk 0:02:38.7]}
11... gxh5 {[%clk 0:03:00.5]} 12. f4 {[%clk 0:02:36.5]} 12... Nf6 {[%clk
0:02:57.8]} 13. Be2 {[%clk 0:02:35.9]} 13... exf4 {[%clk 0:02:51.4]} 14. Bxh5+
{[%clk 0:02:35.3]} 14... Ng6 {[%clk 0:02:51.7]} 15. exf5 {[%clk 0:02:32.7]}
15... fxe3 {[%clk 0:02:45.1]} 16. fxg6 {[%clk 0:02:31.3]} 16... exf2+ {[%clk
0:02:45.2]} 17. Kf1 {[%clk 0:02:31.6]} 17... O-O {[%clk 0:02:43.7]} 18. gxh7+
{[%clk 0:02:29.7]} 18... Kh8 {[%clk 0:02:43.4]} 19. Qd3 {[%clk 0:02:23.4]} 19...
Nxh5 {[%clk 0:02:36.6]} 20. Rxh5 {[%clk 0:02:23]} 20... Qf6 {[%clk 0:02:28.7]}
21. Ne4 {[%clk 0:02:12.4]} 21... Qg6 {[%clk 0:02:28.5]} 22. Rh1 {[%clk
0:02:09.8]} 22... Qf5 {[%clk 0:02:18.1]} 23. Ng3 {[%clk 0:01:54.4]} 23... Qe5
{[%clk 0:02:12.5]} 24. Rh5 {[%clk 0:01:24.8]} 24... Qxb2 {[%clk 0:02:05.7]} 25.
Rd1 {[%clk 0:01:24.8]} 25... Rae8 {[%clk 0:02:01.1]} 26. Ne4 {[%clk 0:01:15.4]}
26... Rf4 {[%clk 0:01:40.1]} 27. Ng3 {[%clk 0:00:35.9]} 27... Qb4 {[%clk
0:01:30.4]} 28. Kg2 {[%clk 0:00:24.8]} 28... Qxa4 {[%clk 0:01:12.5]} 29. Qg6
{[%clk 0:00:14.5]} 29... Ref8 {[%clk 0:01:08.7]} 30. Rg5 {[%clk 0:00:12.9]}
30... R8f7 {[%clk 0:00:56.1]} 31. Nh5 {[%clk 0:00:11]} 31... Qe4+ {[%clk
0:00:50.9]} 32. Qxe4 {[%clk 0:00:10.5]} 32... Rxe4 {[%clk 0:00:51.2]} 33. Rf1
{[%clk 0:00:10.7]} 33... Bd4 {[%clk 0:00:47.1]} 34. Rh1 {[%clk 0:00:09.2]} 34...
f1=Q+ {[%clk 0:00:42.2]} 35. Rxf1 {[%clk 0:00:09.7]} 35... Re2+ {[%clk
0:00:42.4]} 36. Kg3 {[%clk 0:00:08.9]} 36... Rxf1 {[%clk 0:00:41.9]} 37. Kg4
{[%clk 0:00:06.1]} 37... Rg2+ {[%clk 0:00:39]} 38. Ng3 {[%clk 0:00:05.8]} 38...
Rfg1 {[%clk 0:00:35.3]} 39. Kh5 {[%clk 0:00:03.2]} 39... Rxg3 {[%clk 0:00:33.2]}
40. Kh6 {[%clk 0:00:03.3]} 40... Rxg5 {[%clk 0:00:31.5]} 41. c3 {[%clk
0:00:03.1]} 41... R5g2 {[%clk 0:00:31.1]} 42. cxd4 {[%clk 0:00:02.9]} 42... Rh2#
{[%clk 0:00:31.3]} 0-1

[Event "Late-Titled-Tuesday-Blitz-April-30-2024"]
[Site "Chess.com"]
[Date "2024.04.30"]
[Round "2"]
[White "ganzy"]
[Black "HandKnit"]
[Result "0-1"]
[WhiteElo "2280"]
[BlackElo "2511"]
[TimeControl "180+1"]
[EndTime "14:18:17 PDT"]
[Termination "HandKnit won by checkmate"]

1. e4 {[%clk 0:03:00.9]} 1... c5 {[%clk 0:02:57.8]} 2. Nf3 {[%clk 0:03:01.3]}
2... e6 {[%clk 0:02:57.9]} 3. d4 {[%clk 0:03:01.9]} 3... cxd4 {[%clk 0:02:58.8]}
4. Nxd4 {[%clk 0:03:02.5]} 4... a6 {[%clk 0:02:59.4]} 5. Nc3 {[%clk 0:03:02.4]}
5... b5 {[%clk 0:02:58.8]} 6. Bd3 {[%clk 0:03:00.9]} 6... Bb7 {[%clk 0:02:58.7]}
7. O-O {[%clk 0:03:01]} 7... Nc6 {[%clk 0:02:59.2]} 8. Be3 {[%clk 0:02:58]} 8...
Nxd4 {[%clk 0:02:57.6]} 9. Bxd4 {[%clk 0:02:58]} 9... Ne7 {[%clk 0:02:58.2]} 10.
f4 {[%clk 0:02:48.8]} 10... Nc6 {[%clk 0:02:56.4]} 11. Be3 {[%clk 0:02:44.3]}
11... Bb4 {[%clk 0:02:56.2]} 12. Qg4 {[%clk 0:02:36]} 12... Kf8 {[%clk
0:02:46.2]} 13. Qg3 {[%clk 0:02:28.3]} 13... h5 {[%clk 0:02:39.2]} 14. Rad1
{[%clk 0:02:25.1]} 14... Qe7 {[%clk 0:02:37.3]} 15. f5 {[%clk 0:02:15.5]} 15...
e5 {[%clk 0:02:32.8]} 16. Nd5 {[%clk 0:02:13.1]} 16... Qd6 {[%clk 0:02:30.4]}
17. f6 {[%clk 0:01:45.3]} 17... g6 {[%clk 0:02:28.8]} 18. Nb6 {[%clk 0:01:45]}
18... h4 {[%clk 0:02:07.7]} 19. Qf2 {[%clk 0:01:40.6]} 19... Rd8 {[%clk
0:01:57]} 20. a3 {[%clk 0:01:36.4]} 20... Nd4 {[%clk 0:01:53.8]} 21. Na4 {[%clk
0:01:31.8]} 21... bxa4 {[%clk 0:01:50.4]} 22. axb4 {[%clk 0:01:32.2]} 22... Qc6
{[%clk 0:01:39.1]} 23. Bxd4 {[%clk 0:01:28.8]} 23... exd4 {[%clk 0:01:40]} 24.
Qxd4 {[%clk 0:01:28.5]} 24... h3 {[%clk 0:01:40.1]} 25. Qe5 {[%clk 0:01:20.9]}
25... Re8 {[%clk 0:01:32.3]} 26. Qc5+ {[%clk 0:01:09]} 26... Kg8 {[%clk
0:01:29.4]} 27. g3 {[%clk 0:01:02.5]} 27... Qe6 {[%clk 0:01:21.9]} 28. Rf4
{[%clk 0:00:47.3]} 28... Rh5 {[%clk 0:01:19]} 29. Qc7 {[%clk 0:00:42.7]} 29...
Bc6 {[%clk 0:01:11.5]} 30. Qb6 {[%clk 0:00:11.2]} 30... Qa2 {[%clk 0:00:58.2]}
31. Qxa6 {[%clk 0:00:09.6]} 31... Qxb2 {[%clk 0:00:55.8]} 32. Qc4 {[%clk
0:00:08.6]} 32... Rhe5 {[%clk 0:00:44]} 33. Rg4 {[%clk 0:00:06.4]} 33... R5e6
{[%clk 0:00:31.8]} 34. Rf1 {[%clk 0:00:03.9]} 34... Rxf6 {[%clk 0:00:23.5]} 35.
Rxf6 {[%clk 0:00:03.8]} 35... Qxf6 {[%clk 0:00:24]} 36. e5 {[%clk 0:00:04.4]}
36... Qxe5 {[%clk 0:00:22]} 37. Rxg6+ {[%clk 0:00:04.9]} 37... Kf8 {[%clk
0:00:22.5]} 38. Rg4 {[%clk 0:00:04.8]} 38... Qe3+ {[%clk 0:00:18.1]} 39. Kf1
{[%clk 0:00:04.9]} 39... Qe1# {[%clk 0:00:17.8]} 0-1

[Event "Late-Titled-Tuesday-Blitz-April-30-2024"]
[Site "Chess.com"]
[Date "2024.04.30"]
[Round "2"]
[White "alexrustemov"]
[Black "Mackster23"]
[Result "0-1"]
[WhiteElo "2892"]
[BlackElo "2600"]
[TimeControl "180+1"]
[EndTime "14:18:18 PDT"]
[Termination "Mackster23 won by checkmate"]

1. d4 {[%clk 0:03:00.9]} 1... Nf6 {[%clk 0:02:58.9]} 2. c4 {[%clk 0:03:01.4]}
2... e6 {[%clk 0:02:59.1]} 3. Nf3 {[%clk 0:03:02]} 3... d5 {[%clk 0:02:59.5]} 4.
cxd5 {[%clk 0:03:01.6]} 4... exd5 {[%clk 0:02:59]} 5. Nc3 {[%clk 0:03:02.2]}
5... c6 {[%clk 0:02:59.3]} 6. Bf4 {[%clk 0:03:02.7]} 6... Bf5 {[%clk 0:02:59.6]}
7. e3 {[%clk 0:03:02.1]} 7... Nbd7 {[%clk 0:02:52.7]} 8. h3 {[%clk 0:03:01.9]}
8... Be7 {[%clk 0:02:51.6]} 9. Nh4 {[%clk 0:03:01.3]} 9... Be6 {[%clk
0:02:50.8]} 10. Bd3 {[%clk 0:03:00]} 10... Ne4 {[%clk 0:02:48]} 11. Nf3 {[%clk
0:02:56.5]} 11... f5 {[%clk 0:02:46.7]} 12. Ne5 {[%clk 0:02:49.7]} 12... Qa5
{[%clk 0:02:39.4]} 13. Qc2 {[%clk 0:02:47.7]} 13... Bb4 {[%clk 0:02:35.7]} 14.
O-O {[%clk 0:02:39.2]} 14... Nxe5 {[%clk 0:01:56.4]} 15. Bxe5 {[%clk 0:02:38.6]}
15... O-O {[%clk 0:01:56.2]} 16. Ne2 {[%clk 0:02:25.8]} 16... Rae8 {[%clk
0:01:46]} 17. a3 {[%clk 0:02:23.9]} 17... Bd6 {[%clk 0:01:41.5]} 18. b4 {[%clk
0:02:05.9]} 18... Qc7 {[%clk 0:01:40.1]} 19. Bxd6 {[%clk 0:02:00.2]} 19... Nxd6
{[%clk 0:01:35.8]} 20. Rac1 {[%clk 0:01:51]} 20... Qe7 {[%clk 0:01:26.1]} 21. a4
{[%clk 0:01:48.4]} 21... Bd7 {[%clk 0:01:17.3]} 22. Rce1 {[%clk 0:01:21.9]}
22... Ne4 {[%clk 0:01:12.2]} 23. Qb2 {[%clk 0:01:18.8]} 23... g5 {[%clk
0:01:09.4]} 24. Bc2 {[%clk 0:01:09.4]} 24... Nd2 {[%clk 0:01:02.7]} 25. Bxf5
{[%clk 0:01:03.2]} 25... Nc4 {[%clk 0:00:56]} 26. Bxh7+ {[%clk 0:00:59.3]} 26...
Qxh7 {[%clk 0:00:54.5]} 27. Qc3 {[%clk 0:00:59.5]} 27... Nd6 {[%clk 0:00:42.9]}
28. f3 {[%clk 0:00:56.7]} 28... Re7 {[%clk 0:00:37.3]} 29. Ng3 {[%clk
0:00:56.4]} 29... Rfe8 {[%clk 0:00:37.5]} 30. Re2 {[%clk 0:00:50.8]} 30... Qh4
{[%clk 0:00:36.9]} 31. Kh2 {[%clk 0:00:50.2]} 31... Nf5 {[%clk 0:00:36.5]} 32.
Nxf5 {[%clk 0:00:47.3]} 32... Bxf5 {[%clk 0:00:37.4]} 33. Rfe1 {[%clk
0:00:41.4]} 33... Rh7 {[%clk 0:00:35.3]} 34. Kg1 {[%clk 0:00:29.3]} 34... Qg3
{[%clk 0:00:34.2]} 35. Kf1 {[%clk 0:00:18.9]} 35... Rxh3 {[%clk 0:00:31.9]} 36.
Rf2 {[%clk 0:00:16.7]} 36... Rh2 {[%clk 0:00:28.2]} 37. Qc5 {[%clk 0:00:11.6]}
37... Bd3+ {[%clk 0:00:25.7]} 38. Kg1 {[%clk 0:00:11]} 38... Qh4 {[%clk
0:00:23.8]} 39. Rd2 {[%clk 0:00:02.4]} 39... Rh1# {[%clk 0:00:23.4]} 0-1

[Event "Late-Titled-Tuesday-Blitz-April-30-2024"]
[Site "Chess.com"]
[Date "2024.04.30"]
[Round "2"]
[White "Aalessia"]
[Black "albi1999"]
[Result "0-1"]
[WhiteElo "2381"]
[BlackElo "2646"]
[TimeControl "180+1"]
[EndTime "14:18:18 PDT"]
[Termination "albi1999 won by resignation"]

1. c4 {[%clk 0:02:53.3]} 1... Nf6 {[%clk 0:02:56.3]} 2. Nc3 {[%clk 0:02:51.8]}
2... e6 {[%clk 0:02:56.2]} 3. Nf3 {[%clk 0:02:50.6]} 3... Bb4 {[%clk 0:02:46.1]}
4. Qc2 {[%clk 0:02:49.4]} 4... c5 {[%clk 0:02:45.2]} 5. d4 {[%clk 0:02:46.2]}
5... cxd4 {[%clk 0:02:40.9]} 6. Nxd4 {[%clk 0:02:47.1]} 6... O-O {[%clk
0:02:34.2]} 7. Bd2 {[%clk 0:02:42.7]} 7... Nc6 {[%clk 0:02:33.6]} 8. Nxc6 {[%clk
0:02:38.9]} 8... bxc6 {[%clk 0:02:34.5]} 9. e4 {[%clk 0:02:38]} 9... d5 {[%clk
0:02:32.5]} 10. cxd5 {[%clk 0:02:21.9]} 10... exd5 {[%clk 0:02:29.2]} 11. e5
{[%clk 0:02:12]} 11... Re8 {[%clk 0:02:26.7]} 12. f4 {[%clk 0:02:07.4]} 12... d4
{[%clk 0:02:18.1]} 13. Ne4 {[%clk 0:01:44.8]} 13... Bxd2+ {[%clk 0:01:37.9]} 14.
Nxd2 {[%clk 0:01:43]} 14... Nd5 {[%clk 0:01:37.9]} 15. Qe4 {[%clk 0:01:37.3]}
15... Ne3 {[%clk 0:01:34.9]} 16. Bd3 {[%clk 0:01:33.6]} 16... Bf5 {[%clk
0:01:34.6]} 17. Qxf5 {[%clk 0:01:28.1]} 17... Nxf5 {[%clk 0:01:33.7]} 18. Bxf5
{[%clk 0:01:28.8]} 18... Rb8 {[%clk 0:01:30.4]} 19. b3 {[%clk 0:01:27.4]} 19...
Qa5 {[%clk 0:01:29.9]} 20. Ke2 {[%clk 0:01:10.7]} 20... f6 {[%clk 0:01:29.6]}
21. Nc4 {[%clk 0:01:10.1]} 21... Qd5 {[%clk 0:01:27.3]} 22. g4 {[%clk 0:01:02]}
22... fxe5 {[%clk 0:01:25.5]} 23. fxe5 {[%clk 0:00:59.8]} 23... d3+ {[%clk
0:01:23]} 24. Bxd3 {[%clk 0:00:55.3]} 24... Rbd8 {[%clk 0:01:22.6]} 25. Rad1
{[%clk 0:00:54.5]} 25... Qg2+ {[%clk 0:01:21.9]} 26. Ke3 {[%clk 0:00:53.4]}
26... Rd5 {[%clk 0:01:20]} 27. Be4 {[%clk 0:00:48.9]} 27... Qh3+ {[%clk
0:01:14.7]} 28. Bf3 {[%clk 0:00:39.7]} 28... Rf8 {[%clk 0:01:07.1]} 29. Rdf1
{[%clk 0:00:30.4]} 29... Qh6+ {[%clk 0:01:04.8]} 30. Ke2 {[%clk 0:00:28.7]}
30... Rdd8 {[%clk 0:00:49.6]} 31. h4 {[%clk 0:00:28.4]} 31... Qe6 {[%clk
0:00:43.2]} 32. g5 {[%clk 0:00:24.6]} 32... Rf4 {[%clk 0:00:42.4]} 33. Ke3
{[%clk 0:00:20.7]} 33... Rdf8 {[%clk 0:00:41.7]} 34. h5 {[%clk 0:00:14.5]} 34...
Qe7 {[%clk 0:00:37.5]} 35. g6 {[%clk 0:00:11.1]} 35... Qg5 {[%clk 0:00:33.4]}
36. gxh7+ {[%clk 0:00:10.6]} 36... Kh8 {[%clk 0:00:33.6]} 37. Ke2 {[%clk
0:00:10.1]} 37... Rxf3 {[%clk 0:00:32.6]} 38. Rhg1 {[%clk 0:00:08.5]} 38... Qxh5
{[%clk 0:00:27.1]} 39. Rxf3 {[%clk 0:00:07]} 39... Qxf3+ {[%clk 0:00:27.2]} 0-1

[Event "Late-Titled-Tuesday-Blitz-April-30-2024"]
[Site "Chess.com"]
[Date "2024.04.30"]
[Round "2"]
[White "katharinareinecke"]
[Black "nicolasbatista3"]
[Result "0-1"]
[WhiteElo "2046"]
[BlackElo "2445"]
[TimeControl "180+1"]
[EndTime "14:18:18 PDT"]
[Termination "nicolasbatista3 won on time"]

1. e4 {[%clk 0:02:55.4]} 1... c6 {[%clk 0:02:59.7]} 2. Nf3 {[%clk 0:02:52.1]}
2... d5 {[%clk 0:03:00.1]} 3. d3 {[%clk 0:02:50.3]} 3... Bg4 {[%clk 0:02:54.9]}
4. h3 {[%clk 0:02:47.4]} 4... Bh5 {[%clk 0:02:52.1]} 5. Qe2 {[%clk 0:02:38.3]}
5... e6 {[%clk 0:02:51.5]} 6. g3 {[%clk 0:02:36.1]} 6... Nf6 {[%clk 0:02:50.9]}
7. Bg2 {[%clk 0:02:36.2]} 7... Be7 {[%clk 0:02:41]} 8. O-O {[%clk 0:02:34.9]}
8... O-O {[%clk 0:02:40.9]} 9. Bf4 {[%clk 0:02:27.1]} 9... Qb6 {[%clk
0:02:37.8]} 10. b3 {[%clk 0:02:25.1]} 10... Na6 {[%clk 0:02:25]} 11. c4 {[%clk
0:02:17.1]} 11... dxe4 {[%clk 0:02:08.5]} 12. dxe4 {[%clk 0:02:14.9]} 12... Nc5
{[%clk 0:01:39]} 13. Nc3 {[%clk 0:02:12.2]} 13... Rad8 {[%clk 0:01:32.2]} 14.
Rad1 {[%clk 0:02:11.2]} 14... Qa5 {[%clk 0:01:30.6]} 15. Bd2 {[%clk 0:02:05.5]}
15... Qa3 {[%clk 0:00:48.7]} 16. e5 {[%clk 0:01:59.9]} 16... Nfd7 {[%clk
0:00:47.9]} 17. g4 {[%clk 0:01:56.2]} 17... Bg6 {[%clk 0:00:47.5]} 18. Bc1
{[%clk 0:01:16.1]} 18... Qb4 {[%clk 0:00:43.3]} 19. Bb2 {[%clk 0:01:13.7]} 19...
Qb6 {[%clk 0:00:35.5]} 20. Rd2 {[%clk 0:01:11.3]} 20... Qc7 {[%clk 0:00:30.7]}
21. Rfd1 {[%clk 0:01:00.5]} 21... Nb6 {[%clk 0:00:30.7]} 22. Ne1 {[%clk
0:00:53.3]} 22... Rxd2 {[%clk 0:00:25.5]} 23. Rxd2 {[%clk 0:00:54.2]} 23... Bg5
{[%clk 0:00:23.2]} 24. Rd1 {[%clk 0:00:49.8]} 24... Ncd7 {[%clk 0:00:21.3]} 25.
Ne4 {[%clk 0:00:44.5]} 25... Bf4 {[%clk 0:00:19]} 26. Nd6 {[%clk 0:00:37.9]}
26... Nc8 {[%clk 0:00:19.2]} 27. Nxc8 {[%clk 0:00:32.2]} 27... Qxc8 {[%clk
0:00:20.1]} 28. Nd3 {[%clk 0:00:27.3]} 28... Bxd3 {[%clk 0:00:18.9]} 29. Qxd3
{[%clk 0:00:23.5]} 29... Nxe5 {[%clk 0:00:18.7]} 30. Bxe5 {[%clk 0:00:22.4]}
30... Bxe5 {[%clk 0:00:18.9]} 31. Be4 {[%clk 0:00:19.7]} 31... h6 {[%clk
0:00:18.2]} 32. Qd7 {[%clk 0:00:19.7]} 32... Qb8 {[%clk 0:00:14.6]} 33. Kg2
{[%clk 0:00:12.3]} 33... Bf6 {[%clk 0:00:15]} 34. f3 {[%clk 0:00:06.2]} 34...
Rd8 {[%clk 0:00:14.4]} 0-1